[Event "E Women's Chess World Championship"]
[Site "Chess.com"]
[Date "2023.07.09"]
[Round "4"]
[White "Ju, Wenjun"]
[Black "Lei, Tingjie"]
[Result "1/2-1/2"]
[WhiteElo "2564"]
[BlackElo "2554"]
[ECO "D24"]
[EventDate "2023.??.??"]
[Annotator "rafael"]
[PlyCount "125"]
[Beauty "5017863986184"]
[EventType "match"]
[EventRounds "2"]
[EventCountry "FID"]
[TimeControl "40/5400+30:1800+30"]

1.d4 d5 2.c4 e6 3.Nf3 Nf6 4.Nc3 dxc4 5.e4 b5 $5 {[%c_effect b5;square;b5;type;Interesting;persistent;true] This is an interesting and risky variation that I like to call the \"Argentine Variation,\" as it's often played by many Argentine grandmasters. It was played by Firouzja against Radjabov in the first round of last year's Candidates Tournament. Radjabov is on Lei's team so they certainly did a lot of work on this line.} 6.e5 Nd5 7.Nxb5 Nb6 8.Be2 ( 8.a3 {was Carlsen's choice in an important game this year. The idea of this pawn move, which can be tried in different positions on this line, is to avoid ...Nb4, the usual path to reach the d5-square.} 8...Nc6 9.Be3 Qd7 10.Nc3 Bb7 11.Qc2 Na5 12.Rd1 {Carlsen-Nakamura, Airthings (rapid) 2023. Carlsen won a nice game, but it's easy to bet that Lei's team has an improvement somewhere for Black.} ) 8...Nc6 9.O-O Be7 10.Be3 O-O {The game follows the main line of the variation.} 11.Nc3 Rb8 {This is an important position.} 12.b3 ( 12.a3 {was played by Radjabov:} 12...Na5 13.Qc2 Nd5 14.Rad1 Ba6 15.Bd2 Nb3 {with complicated play in Radjabov-Firouzja, Candidates Tournament Madrid 2022.} ) ( 12.Qc1 {with the idea of 13.Rd1 that has also been tried by strong players.} ) 12...cxb3 13.axb3 Bb7 14.Qb1 {The queen frees the path for the f1-rook and also keeps an eye on the kingside.} 14...Nb4 15.Ne4 h6 $1 {[%c_effect h6;square;h6;type;GreatFind;persistent;true] A novelty that was played instantly by Lei. It's the first suggestion of the engine. Black avoids a knight jump to g5.} ( 15...a6 $6 {[%c_effect a6;square;a6;type;Inaccuracy;persistent;true]} 16.Neg5 g6 17.Rc1 {led to a dangerous position for Black in Davytan-Azarov, Cattolica Primavera op 2022.} ) ( 15...N6d5 {was played in Wang-Tabatabaei, Chess.com (rapid). White is better after} 16.Neg5 $1 {[%c_effect g5;square;g5;type;GreatFind;persistent;true]} 16...g6 17.Bd2 ) 16.Rxa7 N6d5 17.Bd2 Nc6 18.Ra1 Ndb4 19.Be3 Nd5 {A tacit draw offer.} 20.Bc1 {Ju decides to play for the win. Only now Lei started to think. She is showing excellent opening preparation in the match.} 20...Ra8 {Black has good compensation for the sacrificed pawn. The reasons are the active pieces, the d5-square, which is firmly occupied by the knight, and the potential counterplay on the queenside.} 21.Rd1 Rxa1 22.Qxa1 Ncb4 ( 22...Qa8 23.Bd2 Rb8 {with an equal position. White's knight cannot go to c5 because of} 24.Nc5 $2 {[%c_effect c5;square;c5;type;Mistake;persistent;true]} 24...Qxa1 25.Rxa1 Nxd4 $1 {[%c_effect d4;square;d4;type;GreatFind;persistent;true]} ) 23.Nc5 $1 {[%c_effect c5;square;c5;type;GreatFind;persistent;true]} 23...Bc6 24.Bd2 Qb8 25.Qa5 ( 25.Qc1 {is a scary move to face, as the bishop sac on h6 is always a headache. But Black can defend, for instance:} 25...Qa7 26.Bxh6 Na2 $1 {[%c_effect a2;square;a2;type;GreatFind;persistent;true]} ( 26...gxh6 $2 {[%c_effect h6;square;h6;type;Mistake;persistent;true]} 27.Qxh6 {gives White a dangerous attack.} ) 27.Qd2 Nac3 28.Re1 Nxe2+ 29.Rxe2 gxh6 30.Qxh6 Bxc5 31.Qg5+ {with perpetual check.} ) 25...Rd8 26.Rc1 Qb6 27.Qxb6 cxb6 28.Na6 Bb7 29.Nc7 ( 29.Nxb4 Bxb4 {with an equal endgame.} ) 29...g5 $1 {[%c_effect g5;square;g5;type;GreatFind;persistent;true] I love these pawn moves gaining space in the endgame.} ( 29...Rc8 {doesn't fully equalize after} 30.Nxd5 Rxc1+ 31.Bxc1 Bxd5 32.Bc4 ) 30.h3 Nf4 {Concrete play. It's not easy to say goodbye to such a strong knight, but this is done with good reason.} 31.Bxf4 gxf4 32.Nb5 Bc6 33.Kf1 Kf8 34.Rd1 Ra8 35.Nc3 Na2 $1 {[%c_effect a2;square;a2;type;GreatFind;persistent;true] This nice move forces the way for Black's rook.} 36.Nxa2 Rxa2 37.Ne1 Rb2 38.Nd3 Rxb3 39.Nxf4 Ba3 {Played in order to avoid White's rook from reaching the c-file.} ( 39...b5 {Black could start advancing the b-pawn since 40.Rc1 is not so dangerous:} 40.Rc1 ( 40.d5 exd5 41.Nxd5 Bc5 {is fine.} ) 40...Bb7 {with equal chances.} ( 40...Bg5 {is also possible.} ) ) 40.d5 exd5 41.Nxd5 Bc5 {The pair of bishops and the b-pawn are good compensation for the missing pawn.} 42.Nf6 Rb2 {Threatening ...Bxg2+.} 43.f4 ( 43.Nd7+ Bxd7 44.Rxd7 {Now Black can force a draw with} 44...Rb1+ ( 44...b5 {is also playable.} ) 45.Rd1 ( 45.Bd1 Rb2 $1 {[%c_effect b2;square;b2;type;GreatFind;persistent;true]} ) 45...Rxd1+ 46.Bxd1 Bd4 47.f4 f6 48.exf6 ( 48.e6 Bc5 {The king goes to g7, and Black has a fortress.} ) 48...Bxf6 49.Kf2 Kg7 50.Kf3 Bc3 51.g4 Bd2 52.Ke4 Kf6 {White cannot make progress.} ) 43...Rb4 $1 {[%c_effect b4;square;b4;type;GreatFind;persistent;true]} 44.g3 Rb3 $1 {[%c_effect b3;square;b3;type;GreatFind;persistent;true]} 45.Nd7+ Bxd7 46.Rxd7 Rxg3 {The pawn is regained, and we arrive at an endgame with opposite-colored bishops. The position is drawn, but White can try to press a little.} 47.Bg4 Re3 48.Kg2 Be7 ( 48...Re4 49.Kg3 Re3+ 50.Bf3 b5 $1 {[%c_effect b5;square;b5;type;GreatFind;persistent;true]} 51.Rb7 b4 52.Kg2 Be7 53.Bd5 Rd3 {with a draw.} ) 49.Rb7 f6 {An interesting moment. This move is a small inaccuracy, although it doesn't spoil anything. But now White could have made a very cunning winning attempt.} ( 49...Bc5 {is bad due to} 50.Bh5 $1 {[%c_effect h5;square;h5;type;GreatFind;persistent;true] winning a pawn.} ) ( 49...Rb3 $1 {[%c_effect b3;square;b3;type;GreatFind;persistent;true]} 50.f5 f6 51.e6 b5 {with a draw.} ) 50.e6 ( 50.Bh5 $1 {[%c_effect h5;square;h5;type;GreatFind;persistent;true] is a dangerous move that would force Lei to find the only way to save the game.} 50...f5 $1 {[%c_effect f5;square;f5;type;GreatFind;persistent;true] Forced.} ( 50...fxe5 $2 {[%c_effect e5;square;e5;type;Mistake;persistent;true]} 51.f5 $1 {[%c_effect f5;square;f5;type;GreatFind;persistent;true] White is threatening 52.f6, and suddenly Black is losing.} ) 51.Rxb6 Bh4 $1 {[%c_effect h4;square;h4;type;GreatFind;persistent;true] Another important move.} ( 51...Kg7 {loses to} 52.Rg6+ {Improving the rook before going for the f5-pawn.} ( 52.Bg6 Bc5 $1 {[%c_effect c5;square;c5;type;GreatFind;persistent;true]} ) 52...Kh7 53.Rc6 Kg7 54.Bg6 {with a winning position.} ) 52.Rxh6 Kg7 53.Rg6+ Kh7 {White cannot win even with a big material advantage.} 54.Rc6 Kg7 {Black has a fortress. Finding these defensive moves is very hard, and the conclusion is that 50.Bh5 would give serious practical winning chances.} ) 50...h5 51.Bf5 h4 52.Bg4 ( 52.Rxb6 Rg3+ 53.Kh1 Rf3 {with a draw.} ) 52...Rg3+ ( 52...Rb3 $1 {[%c_effect b3;square;b3;type;GreatFind;persistent;true] is a good move with the plan of advancing the b-pawn immediately.} ) 53.Kf2 Bc5+ 54.Kf1 ( 54.Ke2 $1 {[%c_effect e2;square;e2;type;GreatFind;persistent;true] is the best winning attempt:} 54...Be7 55.f5 Rb3 56.Kd2 {Black's pawn has no time to reach b4, and White can still try to win.} ) 54...Be7 55.Ke2 ( 55.Rxb6 f5 $1 {[%c_effect f5;square;f5;type;GreatFind;persistent;true]} 56.Bxf5 Rf3+ {with a draw.} ) 55...Rb3 56.f5 ( 56.Kd2 b5 57.Kc2 ( 57.f5 b4 $1 {[%c_effect b4;square;b4;type;GreatFind;persistent;true]} ) 57...Rb4 58.f5 Rc4+ $1 {[%c_effect c4;square;c4;type;GreatFind;persistent;true]} 59.Kd3 Rc5 ) 56...b5 57.Kd2 b4 $1 {[%c_effect b4;square;b4;type;GreatFind;persistent;true] Now the draw is clear, since White has no meaningful plan.} 58.Rb8+ Kg7 59.Re8 Bd6 60.Rd8 Be7 61.Re8 Bd6 62.Rd8 Be7 63.Re8 {Another well-played game in a very balanced match.} 1/2-1/2

[Event "Grand Chess Tour: SuperUnited Rapid & Blitz Croatia 2023"]
[Site "Chess.com"]
[Date "2023.07.08"]
[Round "17"]
[White "Carlsen, Magnus"]
[Black "Rapport, Richard"]
[Result "1-0"]
[WhiteElo "2829"]
[BlackElo "2761"]
[ECO "B04"]
[EventDate "2023.??.??"]
[Annotator "rafael"]
[PlyCount "117"]
[Beauty "6460901690914"]
[EventType "blitz"]
[TimeControl "1500+10"]

1.e4 Nf6 2.e5 Nd5 3.d4 d6 4.Nf3 dxe5 5.Nxe5 c6 {This variation of the Alekhine Defense is used by strong GMs as a blitz weapon.} 6.Bd3 ( 6.Be2 {is the most popular move.} ) 6...g6 ( 6...Nd7 {is usually played. Carlsen faced this move in 2023:} 7.O-O Nxe5 8.dxe5 Nb4 9.Be4 Qxd1 10.Rxd1 {with a slight advantage for White in Carlsen-Bortnyk, Pro League (rapid) 2023.} ) 7.O-O Bg7 8.Re1 O-O 9.c3 Nd7 10.Nxd7 ( 10.Nf3 {keeping the knights on the board is also possible, although White has nothing special here.} ) 10...Bxd7 11.Nd2 Qc7 12.Nf3 Bg4 ( 12...c5 {is a natural move, breaking White's center. This was played in Michiels-Miroshnichenko, Antwerp 2008.} ) 13.h3 Bxf3 14.Qxf3 e5 $6 {[%c_effect e5;square;e5;type;Inaccuracy;persistent;true] This opens the game and helps the pair of bishops.} ( 14...e6 {leads to a typical position: White has the pair of bishops, but Black is very solid.} ) 15.dxe5 Bxe5 16.Bc4 Rfe8 17.Bxd5 $6 {[%c_effect d5;square;d5;type;Inaccuracy;persistent;true] The first new move in the game.} ( 17.g3 $1 {[%c_effect g3;square;g3;type;GreatFind;persistent;true] is better. After} 17...Bg7 18.Bd2 {White had the advantage in Guthmann-Heumann, Germany 2012.} ) 17...Bh2+ $1 {[%c_effect h2;square;h2;type;GreatFind;persistent;true]} ( 17...cxd5 18.Be3 {leads to a slightly better position for White, thanks to the isolated queen's pawn.} ) 18.Kf1 Rxe1+ 19.Kxe1 cxd5 20.g3 $6 {[%c_effect g3;square;g3;type;Inaccuracy;persistent;true] Carlsen certainly missed Black's counterplay.} ( 20.Be3 {leads to a more or less equal position after} 20...Re8 21.Kf1 ( 21.Qxd5 Bf4 ) 21...Qc4+ 22.Qe2 Qc6 ( {Or} 22...Qxe2+ 23.Kxe2 Bf4 {with a drawn endgame.} ) ) 20...Re8+ 21.Be3 $6 {[%c_effect e3;square;e3;type;Inaccuracy;persistent;true] This is met by a nice tactical reply.} ( 21.Kf1 {is better:} 21...Qc4+ 22.Kg2 Re1 23.Kxh2 Qf1 {White must be careful here.} 24.h4 ( 24.Qg2 {is also possible. My machine screams equality after} 24...Qe2 {, showing some strange lines. I would be worried as White in a blitz game since Black wants to play ...Rf1.} ) 24...Qg1+ ( 24...Rxc1 $2 {[%c_effect c1;square;c1;type;Mistake;persistent;true] is not enough:} 25.Rxc1 Qxc1 26.Qxd5 Qxb2 27.Qd8+ Kg7 28.Qd4+ Kg8 29.Qxa7 {Imagine what Carlsen can do with the white pieces in this endgame.} ) 25.Kh3 Qf1+ 26.Kh2 {Accepting the draw is the safest decision.} ( 26.Qg2 Qe2 ) ( 26.Kg4 $4 {[%c_effect g4;square;g4;type;Blunder;persistent;true]} 26...h5+ 27.Kg5 {I was curious to see what happens if White's king embarks on a journey. In the analysis, everything is possible.} 27...Re5+ 28.Kh6 Qa6 $3 {[%c_effect a6;square;a6;type;Brilliant;persistent;true] The only winning move and a fantastic one. These types of moves are easily missed. The threat is 29...g5+.} 29.Bg5 Qd6 $1 {[%c_effect d6;square;d6;type;GreatFind;persistent;true] with mate to follow.} ) ) 21...Bxg3 $1 {[%c_effect g3;square;g3;type;GreatFind;persistent;true]} 22.Kf1 ( {Rapport's idea is revealed after} 22.fxg3 $2 {[%c_effect g3;square;g3;type;Mistake;persistent;true]} 22...Qb6 $1 {[%c_effect b6;square;b6;type;GreatFind;persistent;true]} 23.Kf2 Qxb2+ {winning material.} ) 22...Qc4+ {It's necessary to protect the d5-pawn.} ( 22...Be5 23.Qxd5 ) 23.Kg2 Be5 ( 23...Bb8 {is logical, since the a7-pawn is defended. After} 24.Rd1 Re5 25.b3 Qc6 26.c4 $1 {[%c_effect c4;square;c4;type;GreatFind;persistent;true]} 26...Rf5 27.cxd5 $1 {[%c_effect d5;square;d5;type;GreatFind;persistent;true]} 27...Qd6 28.Qg3 a6 {Black has the advantage, although drawing chances are serious.} ) 24.Bxa7 ( 24.Rd1 {is also possible and likely leads to a draw.} ) 24...Ra8 ( 24...Bg7 $1 {[%c_effect g7;square;g7;type;GreatFind;persistent;true] is more accurate, bringing the rook to the game through the e-file.} ) 25.Re1 $1 {[%c_effect e1;square;e1;type;GreatFind;persistent;true]} 25...Bxc3 $2 {[%c_effect c3;square;c3;type;Mistake;persistent;true] This is a calculation mistake.} ( 25...Rxa7 {The game is equal after} 26.Rxe5 Rxa2 27.Qf6 Ra8 28.Re7 d4 $1 {[%c_effect d4;square;d4;type;GreatFind;persistent;true]} ) 26.Re7 $1 {[%c_effect e7;square;e7;type;GreatFind;persistent;true] Now White is winning.} 26...d4 ( 26...Rf8 27.bxc3 {wins a piece.} ) ( 26...f5 27.bxc3 Rxa7 28.Qe3 {with a winning attack.} ) 27.Qxb7 Rxa7 28.Qxa7 ( 28.Qb8+ {is also good:} 28...Kg7 29.Qe5+ $1 {[%c_effect e5;square;e5;type;GreatFind;persistent;true]} 29...Kh6 30.Rxa7 {Now Black cannot play ...d4-d3.} 30...Bxb2 31.Qf6 {with a winning position.} ) 28...Qd5+ 29.Kh2 d3 30.bxc3 $2 {[%c_effect c3;square;c3;type;Mistake;persistent;true] This move allows Black to equalize.} ( 30.Qd7 $1 {[%c_effect d7;square;d7;type;GreatFind;persistent;true] wins on the spot.} 30...Be5+ ( 30...Qf3 31.Qc8+ $1 {[%c_effect c8;square;c8;type;GreatFind;persistent;true]} 31...Kg7 32.Qxc3+ ) 31.Kg1 Bd6 32.Qc8+ Kg7 33.Qc3+ Kg8 ( 33...Kh6 34.Qd2+ Kg7 35.Re3 {The d-pawn falls.} ) ( 33...Kf8 34.Re3 d2 $2 {[%c_effect d2;square;d2;type;Mistake;persistent;true]} 35.Qh8# ) 34.Re8+ Bf8 35.Qb4 Qg5+ 36.Kh2 {Black has no checks, and the win is easy.} ) 30...d2 31.Rd7 d1=Q 32.Rxd5 Qxd5 {Although the position should be drawn with the best play, life is not easy for Black yet. Queen endgames are the most difficult to defend.} 33.Qb8+ Kg7 34.a4 Qc5 35.Qb2 Qe5+ 36.Kg2 Qd5+ 37.f3 Qg5+ 38.Kf1 Qf6 39.Ke2 Qe6+ 40.Kd3 Qd5+ ( 40...Qxh3 {is also possible:} 41.c4+ Kg8 ) 41.Kc2 Qxf3 42.c4+ Kh6 ( 42...f6 {also leads to a draw after} 43.Qd4 Qxh3 ) 43.Qd4 $1 {[%c_effect d4;square;d4;type;GreatFind;persistent;true] Carlsen, as usual, poses the most difficult problems for the opponent in the endgame.} 43...f5 ( 43...Qxh3 44.Qf4+ Kg7 {should also be a draw with the best play.} ) 44.a5 f4 45.a6 Qe2+ $2 {[%c_effect e2;square;e2;type;Mistake;persistent;true] A fatal mistake.} ( 45...Qg2+ $1 {[%c_effect g2;square;g2;type;GreatFind;persistent;true] This is the right check. The game ends in a draw after} 46.Kb3 f3 {I don't see anything better for White than perpetual check.} ) 46.Kb3 Qf3+ ( 46...f3 {Now the queen doesn't control the a8-square anymore. The variations are interesting:} 47.a7 f2 48.Qh4+ $1 {[%c_effect h4;square;h4;type;GreatFind;persistent;true]} ( 48.a8=Q f1=Q {Positions with four queens on the board are always delightful. White has no way to exploit the checks.} ) 48...Kg7 49.a8=Q f1=Q ( 49...Qd3+ {The checks are over if White plays accurately:} 50.Kb4 Qd6+ 51.Kc3 Qe5+ 52.Kb3 Qe3+ 53.Ka4 ) 50.Qb7+ Qf7 51.Qxh7+ Kxh7 52.Qxf7+ {With a winning endgame, although it's still not easy to prove.} ) 47.Kb4 g5 48.a7 ( 48.Qd6+ Kh5 49.Qd7 {is also winning.} ) 48...Qb7+ 49.Kc3 ( 49.Ka5 {also leads to victory.} ) 49...f3 ( 49...Kh5 {is more stubborn. The winning variations are extremely difficult, for instance:} 50.Qd1+ $1 {[%c_effect d1;square;d1;type;GreatFind;persistent;true]} 50...f3 51.Qd4 $1 {[%c_effect d4;square;d4;type;GreatFind;persistent;true] followed by Kd3-e3.} ) 50.Kd2 Kg6 51.Ke3 {The king approaches the unpleasant black pawn, and the game is over.} 51...h6 52.Kf2 Qa8 53.Qd3+ Kg7 54.Qd7+ Kg6 55.Qe6+ ( 55.Qd6+ Kg7 56.Qb8 $2 {[%c_effect b8;square;b8;type;Mistake;persistent;true] is a primitive attempt. Always be careful with your opponent's resources.} 56...Qe4 $1 {[%c_effect e4;square;e4;type;GreatFind;persistent;true] Threatening ...Qe2+.} ) 55...Kg7 56.Qe7+ Kg6 57.c5 Kh5 ( 57...h5 58.Qd6+ Kg7 59.Qc7+ Kg6 60.Qb6+ Kf5 61.c6 $1 {[%c_effect c6;square;c6;type;GreatFind;persistent;true] closing Black's queen and winning the game.} ) 58.Qf7+ Kh4 59.Qxf3 1-0